Cogmind - Beta 13 @@@ ROGUE MODE // 2024.05.20 @ 22:37:40 Player: Occam Result: Destroyed by L-61 Swordsman with Power Sword Performance ------------- Evolutions (7) 3500 Regions Visited (30) 6000 Robots Destroyed (509) 2545 Value Destroyed (24792) 24792 Prototype IDs (234) 4680 Alien Tech Used (4) 800 Bonus (16835) 16835 TOTAL SCORE: 59152 Bonus ------- High Alert Combat Kills 3314 Follower Combat Kills 1612 Network Hubs Disabled 400 Met Data Miner 300 Used Data Conduit 3000 Destroyed Z-Imprinter 1000 Triggered Deep Caves Wall 500 Exposed GOLEM Chamber 500 Met Zhirov 300 Met Warlord at Base 500 MAIN.C Attacked Warlord 500 Warlord Defense Kills 2152 Built Enhanced Grunts 300 A7 Reached Mainframe 300 Met R17 at Cetus 500 Read Decrypted Archives 300 Scanned by Researcher 500 Pursued by Intercept 1500 Friendly Fire -643 Cogmind --------- Core Integrity 0/1300 Matter 35/300 Energy 207/700 System Corruption 22% Temperature Cool (0) Movement Core (2950) Ox58 Location -3/Quarantine Parts ------- > --- POWER (4) -------- Assembled Flux Generator Vortex Chain Reactor > --- PROPULSION (2) --- (None) > --- UTILITY (12) ----- Assembled Nanovents Assembled Nanovents Huge Storage Unit Assembled Combat Suite Thermal Barrier GOLEM Unit > --- WEAPON (3) ------- Assembled Focal Cannon > --- INVENTORY (25) --- Light Antimatter Reactor Zionite Biocell (0) Zionite Biocell (0) Zionite Biocell (0) Superbattery (14) Structural Scanner Advanced Transmission Jammer Phase Redirector Authchip [Power] Authchip [Power] Authchip [Power] Authchip [Armor] Advanced Dynamic Insulation System GOLEM Unit Subatomic Replicator Advanced Micro-nuke Launcher Peak State ------------ > --- POWER ------------ Assembled Flux Generator Quantum Reactor Quantum Reactor > --- PROPULSION ------- Assembled Alloy Leg Assembled Alloy Leg > --- UTILITY ---------- Assembled Nanovents Huge Storage Unit Assembled Biocell Array Experimental Sensor Array Assembled Combat Suite Weapon Mount Experimental Phase Shifter Phase Armor Improved Force Field GOLEM Unit > --- WEAPON ----------- Assembled Focal Cannon Core Cannon > --- INVENTORY -------- Light Antimatter Reactor Vortex Chain Reactor Improved Heavy Siege Treads Zionite Biocell Zionite Biocell Zionite Biocell Superbattery Structural Scanner Advanced Transmission Jammer Centrium Medium Armor Plating Powered Armor Thermal Barrier Phase Redirector Authchip [Power] Authchip [Power] Authchip [Power] Authchip [Armor] Advanced Dynamic Insulation System GOLEM Unit Subatomic Replicator Advanced Micro-nuke Launcher [Rating: 210] Favorites ----------- Power Assembled Flux Generator Engine Ion Engine Power Core Nuclear Core Reactor Assembled Flux Generator Propulsion Assembled Alloy Leg Treads Light Treads Leg Assembled Alloy Leg Wheel Compact Wheel Utility Huge Storage Unit Device GOLEM Unit Storage Huge Storage Unit Processor Advanced Signal Interpreter Hackware Advanced Hacking Suite Protection Powered Armor Artifact Phase Armor Weapon Assembled Focal Cannon Energy Gun Heavy Particle Gun Energy Cannon Assembled Focal Cannon Ballistic Gun Assault Rifle Ballistic Cannon Assault Cannon Launcher Rocket Launcher Impact Weapon Power Maul Piercing Weapon Heavy Pick Build | -11 -10 -10 -10 -9 -8 -7 -7 -7 -7 -7 -6 -6 -6 -6 -6 -6 -6 -5 -5 -5 -5 -5 -4 -4 -4 -4 -4 -4 -3 -3 ------- Run | Yrd Mat Min Exi Min Mat Fac Low Low Zio Dee Pro Fac Was Fac Low Low Dat Pro Fac Upp Upp War Pro Fac Ext Cet Arc Hub Res Qua Slots Evolved 14 | . . . . . 4 2 . . . . . 2 . . . . . . 2 . . . . 2 . . . . 2 . Power 3 | . . . . . . . . . . . . 1 . . . . . . . . . . . . . . . . 2 . Propulsion . | . . . . . . . . . . . . . . . . . . . . . . . . . . . . . . . Utility 10 | . . . . . 3 2 . . . . . 1 . . . . . . 2 . . . . 2 . . . . . . Weapon 1 | . . . . . 1 . . . . . . . . . . . . . . . . . . . . . . . . . Parts Attached 420 | 2 13 1 . 3 54 33 3 12 5 63 4 12 3 10 4 . 4 4 19 7 . 1 2 32 9 4 4 15 76 21 Power 14 | . 1 . . . 1 1 . 1 . 5 . . . . . . . . . . . . . . . . . . 4 1 Engine 4 | . 1 . . . 1 . . 1 . 1 . . . . . . . . . . . . . . . . . . . . Core 1 | . . . . . . 1 . . . . . . . . . . . . . . . . . . . . . . . . Reactor 9 | . . . . . . . . . . 4 . . . . . . . . . . . . . . . . . . 4 1 Propulsion 37 | . 7 . . . 18 5 . . . 6 . . . . . . . . . . . . . . . . . . . 1 Treads 21 | . 4 . . . 11 2 . . . 3 . . . . . . . . . . . . . . . . . . . 1 Leg . | . . . . . . . . . . . . . . . . . . . . . . . . . . . . . . . Wheel 16 | . 3 . . . 7 3 . . . 3 . . . . . . . . . . . . . . . . . . . . Hover . | . . . . . . . . . . . . . . . . . . . . . . . . . . . . . . . Flight . | . . . . . . . . . . . . . . . . . . . . . . . . . . . . . . . Utility 284 | 1 3 1 . . 11 10 2 4 2 33 3 12 3 10 3 . 3 3 19 7 . 1 2 31 9 4 4 15 72 16 Device 176 | 1 . 1 . . 9 1 1 2 2 10 2 5 2 3 3 . 1 2 9 2 . . 2 22 7 4 3 13 60 9 Storage 8 | . 2 . . . . . . . . 3 . . 1 1 . . . . . 1 . . . . . . . . . . Processor 6 | . 1 . . . . 1 . . . . . 2 . . . . . . . . . . . 1 . . . . . 1 Hackware 15 | . . . . . 2 2 . . . . . 2 . 2 . . . . 4 . . . . 2 . . . . 1 . Protection 76 | . . . . . . 6 1 2 . 20 1 3 . 4 . . 2 1 6 4 . 1 . 6 2 . 1 2 11 3 Artifact 3 | . . . . . . . . . . . . . . . . . . . . . . . . . . . . . . 3 Weapon 85 | 1 2 . . 3 24 17 1 7 3 19 1 . . . 1 . 1 1 . . . . . 1 . . . . . 3 Energy Gun 18 | . 1 . . . 9 . . . . 7 . . . . . . . 1 . . . . . . . . . . . . Energy Cannon 5 | . . . . . 1 . . . . 2 . . . . . . . . . . . . . . . . . . . 2 Ballistic Gun 22 | 1 1 . . 1 8 7 . 2 . 2 . . . . . . . . . . . . . . . . . . . . Ballistic Cannon 11 | . . . . . . 4 . 2 2 3 . . . . . . . . . . . . . . . . . . . . Launcher 11 | . . . . 1 . 1 1 . 1 3 1 . . . 1 . . . . . . . . 1 . . . . . 1 Special Weapon . | . . . . . . . . . . . . . . . . . . . . . . . . . . . . . . . Impact Weapon 17 | . . . . 1 6 5 . 3 . 2 . . . . . . . . . . . . . . . . . . . . Slashing Weapon . | . . . . . . . . . . . . . . . . . . . . . . . . . . . . . . . Piercing Weapon 1 | . . . . . . . . . . . . . . . . . 1 . . . . . . . . . . . . . Special Melee Weapon . | . . . . . . . . . . . . . . . . . . . . . . . . . . . . . . . Unidentified Prototypes 24 | . . . . . 6 . . . 1 11 1 . 1 . . . . . . . . 1 . . . . . . . 3 Parts Lost 55 | . 1 . . . 4 2 . 5 . 14 1 . . . . . 3 1 1 1 . . . 1 . . 6 . . 15 Power 5 | . . . . . . . . 1 . 1 . . . . . . . . . . . . . . . . . . . 3 Propulsion 2 | . . . . . . . . . . 2 . . . . . . . . . . . . . . . . . . . . Utility 39 | . 1 . . . 3 1 . 3 . 10 1 . . . . . 2 1 . 1 . . . 1 . . 4 . . 11 Weapon 9 | . . . . . 1 1 . 1 . 1 . . . . . . 1 . 1 . . . . . . . 2 . . 1 Highest Loss Streak 7 | . 1 . . . 1 1 . 2 . 6 1 . . . . . 2 1 1 1 . . . 1 . . 6 . . 7 To Critical Strikes . | . . . . . . . . . . . . . . . . . . . . . . . . . . . . . . . Average Slot Usage (%) 89 | . 98 100 100 100 99 95 92 91 89 88 99 80 80 80 85 86 80 85 87 87 88 88 87 88 88 89 88 89 88 83 Engine 2 | . 14 14 14 14 9 3 . 2 7 1 . . . . . . . . . . . . . . . . . . . . Reactor 5 | . . . . . . . . . . 5 7 5 6 6 6 6 6 6 5 4 5 5 5 5 5 5 5 5 12 13 Treads 1 | . 17 14 14 14 9 3 . . . . . . . . . . . . . . . . . . . . . . . . Leg 8 | . . . . . . . . . . 8 15 13 13 13 13 13 11 13 11 10 11 11 10 10 10 10 10 10 9 8 Wheel 2 | . 8 14 14 14 8 6 7 7 7 2 . . . . . . . . . . . . . . . . . . . . Device 17 | . 1 12 14 14 27 9 15 18 23 16 10 12 13 8 13 13 10 13 18 18 23 23 23 21 20 21 28 21 20 22 Storage 11 | . 14 14 14 14 9 7 7 7 7 13 15 13 13 13 13 13 13 13 11 10 11 11 11 10 10 10 10 10 9 8 Processor 2 | . 11 1 . . . 7 7 7 7 2 . . . . . . . . . . . . . 5 5 5 5 5 4 5 Hackware 6 | . . . . . 7 14 . . . . . 5 6 12 13 13 13 13 13 9 5 5 5 9 10 10 10 10 9 . Protection 8 | . . . . . . 12 22 19 15 12 26 7 6 5 6 6 8 5 7 10 11 11 11 9 10 10 2 9 6 3 Energy Gun 2 | . 14 14 14 4 16 . . . . 5 . . . . . . . . . . . . . . . . . . . . Energy Cannon 12 | . . . . . . . . . . 10 22 20 20 20 19 20 14 19 16 16 17 17 17 14 14 15 14 15 13 12 Ballistic Gun 2 | . 13 14 14 18 9 14 7 5 . . . . . . . . . . . . . . . . . . . . . . Naked Turns . | . . . . . . . . . . . . . . . . . . . . . . . . . . . . . . . Heaviest Build 271 | 12 90 91 91 91 100 117 120 120 116 162 158 187 183 183 178 178 187 178 184 189 189 189 189 199 200 199 199 200 240 271 Greatest Support 75 | 20 40 16 16 16 16 28 28 28 28 60 60 60 60 60 60 60 60 60 60 60 60 60 60 60 60 60 60 60 60 75 Greatest Overweight (x) 7 | . 5 5 5 5 6 6 4 4 4 7 2 3 3 5 2 2 3 2 3 3 3 3 3 3 3 3 3 3 3 4 Average Overweight (x) 3 | . 3 5 5 5 5 4 4 4 3 3 2 2 2 2 2 2 2 2 2 2 3 2 3 2 3 3 2 2 2 3 Largest Inventory Capacity 25 | 8 25 25 25 25 25 25 25 25 25 25 25 25 25 25 25 25 25 25 25 25 25 25 25 25 25 25 25 25 25 25 Average Capacity 24 | 8 21 25 25 25 25 25 25 25 25 25 25 25 25 25 25 25 25 25 25 24 25 25 25 25 25 25 25 25 25 25 Most Carried 25 | 6 25 25 24 25 25 25 25 25 25 25 25 25 25 25 25 25 25 25 25 25 25 25 25 25 25 25 25 25 25 25 Average Carried 24 | 5 18 24 24 24 24 23 24 22 24 23 24 24 24 24 24 24 24 24 24 23 24 24 24 24 24 24 23 23 24 24 Final Capacity 25 | 8 25 25 25 25 25 25 25 25 25 25 25 25 25 25 25 25 25 25 25 25 25 25 25 25 25 25 25 25 25 25 Final Carried 25 | 6 25 24 24 25 24 25 24 22 25 25 24 25 25 25 25 25 25 25 25 25 25 25 25 25 25 25 22 25 25 17 Class Distribution -------------------- 36% | Hacker-Golem 19% | Golem 11% | Generator-Golem 7% | Mutant 7% | Scavenger-Mutant 5% | Scavenger-Tank 5% | Scavenger-Skirmisher 4% | Tank Dominant Class ---------------- Mutant | -10/Materials Scavenger-Mutant | -10/Mines Scavenger-Mutant | -10/Exiles Scavenger-Mutant | -9/Mines Scavenger-Skirmisher | -8/Materials Scavenger-Mutant | -7/Factory Tank | -7/Lower Caves Tank | -7/Lower Caves Mutant | -7/Zion Golem | -7/Deep Caves Scavenger-Tank | -6/Proximity Caves Golem | -6/Factory Golem | -6/Waste Hacker-Golem | -6/Factory Hacker-Golem | -6/Lower Caves Hacker-Golem | -6/Lower Caves Hacker-Golem | -6/Data Miner Hacker-Golem | -5/Proximity Caves Hacker-Golem | -5/Factory Hacker-Golem | -5/Upper Caves Golem | -5/Upper Caves Golem | -5/Warlord Golem | -4/Proximity Caves Hacker-Golem | -4/Factory Hacker-Golem | -4/Extension Hacker-Golem | -4/Cetus Hacker-Golem | -4/Archives Hacker-Golem | -4/Hub_04(d) Generator-Golem | -3/Research Generator-Golem | -3/Quarantine Resources | -11 -10 -10 -10 -9 -8 -7 -7 -7 -7 -7 -6 -6 -6 -6 -6 -6 -6 -5 -5 -5 -5 -5 -4 -4 -4 -4 -4 -4 -3 -3 ----------- Run | Yrd Mat Min Exi Min Mat Fac Low Low Zio Dee Pro Fac Was Fac Low Low Dat Pro Fac Upp Upp War Pro Fac Ext Cet Arc Hub Res Qua Matter Collected 7309 | 219 302 . 141 111 1070 601 221 738 46 1283 56 155 40 109 85 . 35 48 80 191 . 20 10 360 120 40 . 190 813 225 Remotely . | . . . . . . . . . . . . . . . . . . . . . . . . . . . . . . . Salvage Created 28209 | 104 653 86 . 178 1426 630 132 662 . 1976 408 1957 . 2167 480 450 261 256 635 766 72 1099 525 2619 1252 192 . 1417 5165 2641 Parts 1336 | 7 41 4 . 16 76 28 10 14 . 40 10 105 . 110 13 14 7 17 42 30 7 52 23 145 59 7 . 58 268 133 Haulers Intercepted 6 | . 1 . . . 4 . . . . . . . . 1 . . . . . . . . . . . . . . . . Recyclers Shooed 8 | 1 2 . . . 1 . . . . . . . . 2 . . . . . . . . . 1 . . . . 1 . Parts Field Recycled . | . . . . . . . . . . . . . . . . . . . . . . . . . . . . . . . Retrieved Matter . | . . . . . . . . . . . . . . . . . . . . . . . . . . . . . . . Parts Self-Destructed 131 | . . . . . . . 3 17 . . 20 . . . 3 10 . 17 . 30 7 . 24 . . . . . . . Prevented 9 | . . . . . . . 3 . . . . . . . . . . . . 3 . . 3 . . . . . . . Kills | -11 -10 -10 -10 -9 -8 -7 -7 -7 -7 -7 -6 -6 -6 -6 -6 -6 -6 -5 -5 -5 -5 -5 -4 -4 -4 -4 -4 -4 -3 -3 ------- Run | Yrd Mat Min Exi Min Mat Fac Low Low Zio Dee Pro Fac Was Fac Low Low Dat Pro Fac Upp Upp War Pro Fac Ext Cet Arc Hub Res Qua Combat Hostiles Destroyed 431 | . 7 2 . 9 22 14 11 13 . 67 4 28 . 24 12 7 3 4 12 14 1 19 9 29 12 3 . 16 61 28 Melee 1 | . . . . 1 . . . . . . . . . . . . . . . . . . . . . . . . . . Guns 50 | . 7 2 . 4 22 6 . 4 . 5 . . . . . . . . . . . . . . . . . . . . Cannons 288 | . . . . . . 6 1 9 . 4 4 28 . 24 4 7 2 4 12 14 1 19 9 25 12 3 . 16 61 23 AOE 83 | . . . . 4 . 2 10 . . 50 . . . . 8 . . . . . . . . 4 . . . . . 5 Classes Destroyed 29 | 2 8 . . 1 3 1 . . . 3 1 2 . . 1 . . . . 1 1 2 . 1 . . . . . 2 Worker 16 | . 1 . . . 1 2 . . . . . . . . . . . . . . . . . 3 1 . . 2 4 2 Builder 34 | . 1 . . . 1 1 . . . . . 2 . 2 . . . . . . . . . 13 4 . . 3 6 1 Tunneler 5 | 1 1 . . 1 1 1 . . . . . . . . . . . . . . . . . . . . . . . . Hauler 6 | . 1 . . . 4 . . . . . . . . 1 . . . . . . . . . . . . . . . . Recycler 22 | 1 3 . . . 1 1 . . . . . 3 . 6 . . . . . . . . . 3 1 . . . 3 . Minesweeper 1 | . . . . . . . . . . . . . . . . . . . . 1 . . . . . . . . . . Mechanic 3 | . 1 . . . . . . . . . . . . . . . . . . . . . . . . . . . . 2 Operator 11 | . 1 . . . 1 . . . . . . 1 . . . . . . 1 . . . . . 1 . . . 4 2 Drone 3 | . . . . . . . . . . . 1 . . . . . . . . . . . 2 . . . . . . . Watcher 31 | . 3 . . . 2 . . . . . . 2 . 5 . . . . 1 . . . . 6 2 . . 2 6 2 Swarmer 64 | . 3 . . 6 2 4 7 3 . . . 4 . 8 3 . . . 4 4 . 2 . 4 . . . . 10 . Saboteur 2 | . . . . . . . . . . . . . . . . . . . . . . 1 . . . . . . 1 . Grunt 140 | . 4 2 . 3 11 8 3 8 . . . 13 . 9 6 3 . . 1 4 . 11 5 9 1 . . 9 15 15 Brawler 11 | . . . . . 1 . 1 2 . . . . . . . . . . . 1 . . . . . . . . 3 3 Duelist 9 | . . . . . . . . . . . . 2 . . 1 . . . . 4 . . 1 . . . . . 1 . Protector 2 | . . . . . . . . . . . . 1 . . . . . . . . . 1 . . . . . . . . Researcher 5 | . . . . . . . . . . . . . . . . . . . . . . . . . . . . . . 5 Sentry 34 | . . . . . 5 1 . . . . 1 1 . 4 1 . . 1 2 1 . . 1 1 5 . . 3 7 . Specialist 2 | . . . . . . . . . . . . . . . . . . . . . . 2 . . . . . . . . Hunter 31 | . . . . . 3 . . . . . 2 3 . 1 . . . 2 2 . . 2 . 5 2 1 . 4 4 . Programmer 39 | . . . . . . 1 . . . . . 4 . 2 . . . 1 3 . . . . 7 2 . . . 13 6 Heavy 2 | . . . . . . . . . . . . . . . . . . . . . . . . 1 . . . . 1 . Q-Series 2 | . . . . . . . . . . . . . . . . . . . . . . . . . . . . . . 2 Behemoth 3 | . . . . . . . . . . . . . . . . . . . . . 1 . . . 2 . . . . . Cetus Guard 2 | . . . . . . . . . . . . . . . . . . . . . . . . . . 2 . . . . Enhanced Grunt 4 | . . . . . . . . . . 1 . . . . . . 3 . . . . . . . . . . . . . Tracker 5 | . . . . . . . . . . . . . . . . . . . . . . . . 1 . . . . 3 1 Combat Programmer 5 | . . . . . . . . . . . . . . . . . . . . . . . . 1 . . . . 3 1 Z-Technician 4 | . . . . . . . . . . 4 . . . . . . . . . . . . . . . . . . . . Z-Light 6 | . . . . . . . . . . 6 . . . . . . . . . . . . . . . . . . . . Decomposer 3 | . . . . . . . . 3 . . . . . . . . . . . . . . . . . . . . . . Assembler 2 | . . . . . . . . . . 2 . . . . . . . . . . . . . . . . . . . . Assembled 54 | . . . . 1 . . . . . 53 . . . . . . . . . . . . . . . . . . . . Golem 8 | . . . . . . . . . . 8 . . . . . . . . . . . . . . . . . . . . Thug 4 | . . . . . . . . . . . . . . . . 4 . . . . . . . . . . . . . . Mutant 1 | . . . . . . . . . . . . . . . 1 . . . . . . . . . . . . . . . Best Kill Streak 53 | 2 3 2 . 4 4 5 4 4 . 53 2 6 . 9 9 4 2 2 7 7 1 9 3 13 8 1 . 6 15 7 Combat Bots Only 51 | . 3 2 . 4 3 4 4 4 . 51 2 6 . 4 9 4 2 2 6 7 1 9 3 10 4 1 . 4 10 4 Max Kills in Single Turn 8 | 1 2 1 . 2 2 2 2 1 . 8 1 2 . 2 7 1 1 1 1 1 1 2 1 4 2 1 . 2 2 2 Gunslinging . | . . . . . . . . . . . . . . . . . . . . . . . . . . . . . . . Exploded 8 | . . . . 2 . 2 2 . . 8 . . . . 7 . . . . . . . . 2 . . . . . 2 Melee 1 | . . . . 1 . . . . . . . . . . . . . . . . . . . . . . . . . . Uniques/NPCs Destroyed 1 | . . . . . . . . . . 1 . . . . . . . . . . . . . . . . . . . . Z-Imprinter (-7/Deep Caves) Combat | -11 -10 -10 -10 -9 -8 -7 -7 -7 -7 -7 -6 -6 -6 -6 -6 -6 -6 -5 -5 -5 -5 -5 -4 -4 -4 -4 -4 -4 -3 -3 -------- Run | Yrd Mat Min Exi Min Mat Fac Low Low Zio Dee Pro Fac Was Fac Low Low Dat Pro Fac Upp Upp War Pro Fac Ext Cet Arc Hub Res Qua Hostile Shots Fired 2223 | . 39 2 . 16 75 84 22 82 . 162 42 157 . 141 39 13 28 22 90 48 23 19 34 157 71 2 . 170 271 414 Missed 718 | . 7 . . 3 26 26 9 22 . 50 10 49 . 54 10 3 6 10 19 10 12 11 18 71 37 . . 73 87 95 Damage Taken 25408 | . 348 29 . 105 747 821 254 925 . 2992 457 1867 . 1188 499 203 1015 171 1132 806 142 184 176 1431 561 89 1101 834 1794 5537 Core 2769 | . 23 . . 20 139 99 . 104 . 357 66 173 . 140 41 22 142 . 66 82 . . 8 26 23 16 63 54 99 1006 Absorbed by Shields 5027 | . . . . . . . . . . . . . . . . . . . . . . . . 181 281 63 233 210 1586 2473 Reduced by Siege Mode 13 | . . . . . . . . . . . . . . . . . . . . . . . . . . . . . . 13 Redirected to Core 646 | . . . . . . . . . . . . . . . . . . . . . . . . . . . . . . 646 Redirected to Shielding 610 | . . . . . . . . . . 421 60 . . . . . . . . 29 . . . . . . . . . 100 Ignored by Resistances 2777 | . . . . . . . . . . . . . . . . . . . . . 27 39 154 345 171 30 192 361 867 591 Regen/Repaired (Parts) 414 | . 195 . . . . . . . . . . 18 . . . . . . 23 . . . . 8 . . . . 170 . Core Remaining (%) 67 | 100 . . . 82 74 . . . . . 10 . . . . . . 39 . . . . 84 . . . . 84 . . Volleys Fired 1144 | 3 64 2 . 13 85 35 13 31 . 95 18 73 2 71 19 13 22 8 41 23 4 35 17 83 34 12 1 47 146 134 Largest 3 | 2 2 2 . 2 3 3 2 3 . 3 3 3 2 3 3 3 3 3 3 3 3 3 3 3 3 3 3 3 3 3 Hottest 300 | 60 85 85 . 85 144 95 67 116 . 206 75 75 50 75 75 75 75 75 75 75 75 75 75 75 75 75 75 75 75 300 Shots Fired 2786 | 6 127 4 . 23 256 96 15 92 . 209 56 188 4 172 47 39 48 24 94 63 12 94 49 183 95 34 3 108 376 269 Gun 614 | 6 127 4 . 20 256 80 2 30 . 89 . . . . . . . . . . . . . . . . . . . . Cannon 2103 | . . . . . . 14 2 62 . 87 56 188 4 172 44 39 48 24 94 63 12 94 49 180 95 34 3 108 376 255 Launcher 69 | . . . . 3 . 2 11 . . 33 . . . . 3 . . . . . . . . 3 . . . . . 14 Special . | . . . . . . . . . . . . . . . . . . . . . . . . . . . . . . . Kinetic 412 | 3 64 2 . 19 116 94 4 92 . 18 . . . . . . . . . . . . . . . . . . . . Thermal 2265 | 3 63 2 . 1 140 . . . . 118 56 188 4 172 44 39 48 24 94 63 12 94 49 180 95 34 3 108 376 255 Explosive 69 | . . . . 3 . 2 11 . . 33 . . . . 3 . . . . . . . . 3 . . . . . 14 Electromagnetic 40 | . . . . . . . . . . 40 . . . . . . . . . . . . . . . . . . . . Robot Hit Streak 50 | 2 10 5 . 5 12 12 5 10 . 14 7 17 . 24 17 26 25 4 12 27 22 36 16 37 27 26 5 29 50 32 Robot Miss Streak 6 | 2 4 . . 1 3 2 2 6 . 5 6 5 . 4 1 3 1 2 1 1 . 1 3 2 1 1 . 1 2 2 Penetration Max 1 | . . . . . . 1 . 1 . . . . . . . . . . . . . . . . . . . . . . Secondary Targets 6 | . 2 1 . . 1 1 . . . 1 . . . . . . . . . . . . . . . . . . . . Max Gunslinging Chain 1 | . 1 1 . . 1 1 . . . 1 . . . . . . . . . . . . . . . . . . . . Shots Hit Robots 1725 | 3 79 4 . 13 165 70 11 59 . 102 28 101 . 94 31 26 37 8 42 42 11 60 30 111 72 25 3 73 240 185 Core Hits 961 | 3 34 4 . 13 63 31 21 25 . 162 10 45 . 43 21 10 13 5 18 16 2 33 13 67 33 8 . 35 124 109 Critical Kills 1 | . . . . 1 . . . . . . . . . . . . . . . . . . . . . . . . . . Critical Parts Destroyed 4 | . 1 . . . . . . 1 . 1 . . . . . . . . . . . . . . . . . . . 1 Critical Strikes 24 | . 2 1 . 1 7 1 1 6 . 1 . . . . . . . . . . . . . . . . . . . 4 Burn 9 | . 1 1 . . 7 . . . . . . . . . . . . . . . . . . . . . . . . . Destroy 6 | . 1 . . 1 . . . . . . . . . . . . . . . . . . . . . . . . . 4 Blast 7 | . . . . . . 1 1 5 . . . . . . . . . . . . . . . . . . . . . . Smash 2 | . . . . . . . . 1 . 1 . . . . . . . . . . . . . . . . . . . . Melee Attacks 67 | . . . . 6 5 10 . 15 3 10 . . . . . . 18 . . . . . . . . . . . . . Impact 49 | . . . . 6 5 10 . 15 3 10 . . . . . . . . . . . . . . . . . . . . Slashing . | . . . . . . . . . . . . . . . . . . . . . . . . . . . . . . . Piercing 18 | . . . . . . . . . . . . . . . . . 18 . . . . . . . . . . . . . Sneak Attacks 7 | . . . . . . 3 . 3 . . . . . . . . 1 . . . . . . . . . . . . . Combat Hostiles . | . . . . . . . . . . . . . . . . . . . . . . . . . . . . . . . Follow-up Attacks . | . . . . . . . . . . . . . . . . . . . . . . . . . . . . . . . Damage Inflicted 80250 | 33 1030 54 . 393 2678 1842 1135 1805 . 8426 1232 4970 . 4836 2144 943 1189 324 1953 2212 532 3265 1489 7176 3645 1245 133 3672 12741 9153 Guns 6697 | 33 1030 54 . 150 2678 1070 15 452 . 1215 . . . . . . . . . . . . . . . . . . . . Cannons 62092 | . . . . . . 303 48 783 . 1863 1232 4793 . 4836 1236 943 1118 324 1953 2212 532 3265 1489 6303 3645 1245 133 3539 12741 7556 Explosions 10349 | . . . . 205 . 225 1072 . . 5171 . 165 . . 908 . . . . . . . . 873 . . . 133 . 1597 Melee 1100 | . . . . 38 . 244 . 570 . 177 . . . . . . 71 . . . . . . . . . . . . . Ramming 12 | . . . . . . . . . . . . 12 . . . . . . . . . . . . . . . . . . Kinetic 4512 | 13 562 23 . 150 907 1373 63 1235 . 186 . . . . . . . . . . . . . . . . . . . . Thermal 63582 | 20 468 31 . . 1771 . . . . 2197 1232 4793 . 4836 1236 943 1118 324 1953 2212 532 3265 1489 6303 3645 1245 133 3539 12741 7556 Explosive 9887 | . . . . 205 . 225 1072 . . 5086 . 165 . . 908 . . . . . . . . 873 . . . . . 1353 Electromagnetic 1157 | . . . . . . . . . . 780 . . . . . . . . . . . . . . . . . 133 . 244 Impact 1029 | . . . . 38 . 244 . 570 . 177 . . . . . . . . . . . . . . . . . . . . Slashing . | . . . . . . . . . . . . . . . . . . . . . . . . . . . . . . . Piercing 71 | . . . . . . . . . . . . . . . . . 71 . . . . . . . . . . . . . Highest Corruption 22 | . . . . . 4 4 4 4 4 3 3 3 . 1 1 . . 2 1 . . . . 1 1 . . 1 7 22 Average Corruption 4 | . . . . . 4 3 4 4 4 3 3 1 . 1 1 . . 1 1 . . . . 1 1 . . 1 4 13 Corruption Purged 18 | . . . . . . . . . . . . 3 . . 1 . . . 2 . . . . 3 1 . . 1 7 . Corruption Blocked 15 | . . . . . . . . . . . . . . . . . . . . . . . . . . . . . . 15 Effects 249 | . . . . . 16 3 5 19 2 37 19 13 . 8 2 . . 10 . . . . . 3 2 . . . 50 60 Message Errors 55 | . . . . . 5 . 1 8 1 8 4 2 . 1 1 . . 1 . . . . . . . . . . 14 9 Matter Fused 62 | . . . . . 7 2 . 4 . 14 6 3 . 1 . . . 4 . . . . . 2 1 . . . 7 11 Heat Flow Errors 35 | . . . . . . 1 2 2 . 5 4 . . 3 . . . . . . . . . . 1 . . . 7 10 Energy Discharges 29 | . . . . . 2 . 1 1 . 5 2 1 . 1 . . . 2 . . . . . 1 . . . . 6 7 Parts Rejected 3 | . . . . . . . . . . . . . . 1 . . . . . . . . . . . . . . . 2 Parts Fused 2 | . . . . . . . . . . . . . . . . . . . . . . . . . . . . . 2 . Data Loss (minor) 23 | . . . . . 1 . . 2 1 1 1 5 . . 1 . . 2 . . . . . . . . . . 4 5 Data Loss (major) 8 | . . . . . . . . . . 2 . . . . . . . 1 . . . . . . . . . . 1 4 Misfires 16 | . . . . . 1 . . 1 . 1 2 1 . 1 . . . . . . . . . . . . . . 3 6 Alerts 7 | . . . . . . . 1 . . 1 . 1 . . . . . . . . . . . . . . . . 2 2 Weapon Failures 9 | . . . . . . . . 1 . . . . . . . . . . . . . . . . . . . . 4 4 Overload Shots . | . . . . . . . . . . . . . . . . . . . . . . . . . . . . . . . Overflow Damage 4518 | . . . . 20 . 72 19 432 . 465 91 393 . 409 52 40 11 24 86 210 . 178 70 621 154 26 . 98 716 331 Projectiles 3674 | . . . . . . 3 13 5 . 222 91 389 . 409 43 40 . 24 86 210 . 178 70 621 154 26 . 72 716 302 Explosions 243 | . . . . 20 . 2 6 . . 147 . 4 . . 9 . . . . . . . . . . . . 26 . 29 Melee 601 | . . . . . . 67 . 427 . 96 . . . . . . 11 . . . . . . . . . . . . . Knockbacks 5 | . . . . . . 2 . 2 . 1 . . . . . . . . . . . . . . . . . . . . Impact 3 | . . . . . . 1 . 1 . 1 . . . . . . . . . . . . . . . . . . . . Kinetic 2 | . . . . . . 1 . 1 . . . . . . . . . . . . . . . . . . . . . . Secondary . | . . . . . . . . . . . . . . . . . . . . . . . . . . . . . . . Self-Inflicted Damage 561 | . . . . . . . 70 . . 148 . 48 . . . . . . 68 . . . . . . . . 73 . 154 Shots 11 | . . . . . . . 2 . . 3 . 1 . . . . . . 1 . . . . . . . . 1 . 3 Rammed . | . . . . . . . . . . . . . . . . . . . . . . . . . . . . . . . Targets Rammed 2 | . . . . . . . . . . . . 2 . . . . . . . . . . . . . . . . . . Kicked 2 | . . . . . . . . . . . . 2 . . . . . . . . . . . . . . . . . . Crushed . | . . . . . . . . . . . . . . . . . . . . . . . . . . . . . . . Highest Temperature 550 | . 72 54 . 9 123 199 261 295 . 256 264 91 . 274 117 48 50 6 7 47 . 7 32 20 212 . . 32 324 550 Average Temperature 69 | . 20 31 . 6 32 79 84 126 . 53 85 22 . 36 53 14 31 3 4 25 . 5 17 11 57 . . 14 92 163 Received Heat Transfer 4474 | . 123 36 . 40 261 405 54 414 . 483 . 529 . 216 271 90 . . 9 153 12 27 72 172 50 . . 175 164 718 Effects 6 | . . . . . . . 1 3 . . . . . . . . . . . . . . . . . . . . . 2 Shutdowns 1 | . . . . . . . . . . . . . . . . . . . . . . . . . . . . . . 1 Energy Bleed 1 | . . . . . . . 1 . . . . . . . . . . . . . . . . . . . . . . . Interference 3 | . . . . . . . . 3 . . . . . . . . . . . . . . . . . . . . . . Matter Decay 1 | . . . . . . . . . . . . . . . . . . . . . . . . . . . . . . 1 Siege Activations 1 | . . . . . . . . . . . . . . . . . . . . . . . . . . . . . . 1 Total Turns 9 | . . . . . . . . . . . . . . . . . . . . . . . . . . . . . . 9 Longest Duration 9 | . . . . . . . . . . . . . . . . . . . . . . . . . . . . . . 9 Robots Corrupted 7 | . . . . . . . . . . 7 . . . . . . . . . . . . . . . . . . . . Combat Hostiles 7 | . . . . . . . . . . 7 . . . . . . . . . . . . . . . . . . . . Parts Fried 3 | . . . . . . 2 . . . . . . . . . . . . . . . . . . . . . 1 . . Impact Corruptions 19 | . . . . . . 4 . 13 . 2 . . . . . . . . . . . . . . . . . . . . Robots Melted 1 | . . . . . . . . . . . . . . . . . 1 . . . . . . . . . . . . . Combat Hostiles 1 | . . . . . . . . . . . . . . . . . 1 . . . . . . . . . . . . . Parts Melted 58 | . 1 1 . . 8 . . . . 6 3 6 . 4 . 2 1 1 . 2 . 1 1 4 4 . . 4 6 3 Heat Transferred 37266 | 50 1170 148 . . 4033 . . . . 1636 675 2558 . 2575 700 525 900 175 1025 1150 250 1557 725 3025 1875 650 75 1825 6350 3614 Parts Sabotaged . | . . . . . . . . . . . . . . . . . . . . . . . . . . . . . . . Parts Stolen . | . . . . . . . . . . . . . . . . . . . . . . . . . . . . . . . Parts Stripped . | . . . . . . . . . . . . . . . . . . . . . . . . . . . . . . . Power Chain Reactions 1 | . . . . . . . . . . 1 . . . . . . . . . . . . . . . . . . . . Alert | -11 -10 -10 -10 -9 -8 -7 -7 -7 -7 -7 -6 -6 -6 -6 -6 -6 -6 -5 -5 -5 -5 -5 -4 -4 -4 -4 -4 -4 -3 -3 ------- Run | Yrd Mat Min Exi Min Mat Fac Low Low Zio Dee Pro Fac Was Fac Low Low Dat Pro Fac Upp Upp War Pro Fac Ext Cet Arc Hub Res Qua Peak Influence 1289 | 10 158 55 . 166 301 188 . . . . . 1132 400 615 . . . . 335 . . . . 633 318 417 472 778 1289 1262 Initial 708 | . 6 5 . . 5 109 . . . . . 300 396 140 . . . . . . . . . 300 270 92 134 65 392 708 Average 319 | 8 31 47 . 29 158 81 . . . . . 587 331 272 . . . . 135 . . . . 420 142 217 274 315 457 901 Maximum Alert Level 4 | . . . . . 1 . . . . . . 4 2 2 . . . . 1 . . . . 2 1 2 2 3 4 4 Low Security (%) 46 | 100 100 100 . 100 56 100 . . . . . 5 . 48 . . . . 80 . . . . 3 78 20 55 35 31 . Level 1 25 | . . . . . 44 . . . . . . 46 41 23 . . . . 19 . . . . 49 21 78 40 45 16 . Level 2 12 | . . . . . . . . . . . . 10 58 27 . . . . . . . . . 46 . . 3 2 29 3 Level 3 13 | . . . . . . . . . . . . 28 . . . . . . . . . . . . . . . 16 16 92 Level 4 1 | . . . . . . . . . . . . 9 . . . . . . . . . . . . . . . . 6 4 Level 5 . | . . . . . . . . . . . . . . . . . . . . . . . . . . . . . . . High Security . | . . . . . . . . . . . . . . . . . . . . . . . . . . . . . . . Max Security . | . . . . . . . . . . . . . . . . . . . . . . . . . . . . . . . Squads Dispatched 94 | . . . . . 7 9 . . . . . 14 . 7 . . . . 4 . . . . 10 1 . . 5 18 19 Investigation 23 | . . . . . 3 6 . . . . . 4 . 1 . . . . 2 . . . . 3 . . . 2 2 . Extermination 18 | . . . . . . 1 . . . . . 2 . 2 . . . . 1 . . . . 2 . . . . 5 5 Reinforcement 26 | . . . . . 2 2 . . . . . 4 . 2 . . . . 1 . . . . 2 1 . . 3 3 6 Assault 9 | . . . . . . . . . . . . 3 . . . . . . . . . . . 1 . . . . 2 3 Garrison 6 | . . . . . 2 . . . . . . 1 . 2 . . . . . . . . . . . . . . . 1 Intercept 12 | . . . . . . . . . . . . . . . . . . . . . . . . 2 . . . . 6 4 Searches Triggered . | . . . . . . . . . . . . . . . . . . . . . . . . . . . . . . . Construction Impeded 4 | . . . . . . . . . . . . 2 . 1 . . . . . . . . . . . . . . . 1 Haulers Reinforced 2 | . . . . . . . . . . . . 2 . . . . . . . . . . . . . . . . . . Active Scanning Responses . | . . . . . . . . . . . . . . . . . . . . . . . . . . . . . . . Cargo Convoy Interrupts . | . . . . . . . . . . . . . . . . . . . . . . . . . . . . . . . Stealth | -11 -10 -10 -10 -9 -8 -7 -7 -7 -7 -7 -6 -6 -6 -6 -6 -6 -6 -5 -5 -5 -5 -5 -4 -4 -4 -4 -4 -4 -3 -3 --------- Run | Yrd Mat Min Exi Min Mat Fac Low Low Zio Dee Pro Fac Was Fac Low Low Dat Pro Fac Upp Upp War Pro Fac Ext Cet Arc Hub Res Qua Distress Signals 21 | . 1 . . . 2 1 . . . . . 1 . 2 . . . . 1 . . . . 1 3 2 1 4 2 . Communications Jammed . | . . . . . . . . . . . . . . . . . . . . . . . . . . . . . . . Distress Signals . | . . . . . . . . . . . . . . . . . . . . . . . . . . . . . . . Times Spotted 592 | . 18 3 . 10 29 21 11 14 . 60 7 48 . 34 9 6 3 4 14 13 1 45 11 35 19 13 23 21 69 51 Peak Tracking Total 31 | . 3 2 . 4 3 5 4 4 . 31 2 8 . 5 9 4 2 2 7 7 1 9 4 7 6 5 16 5 8 10 Tactical Retreats 14 | . . . . . 2 . . . . 2 . 4 . 1 . . . . . . . 1 . . . . 1 1 . 2 Traps | -11 -10 -10 -10 -9 -8 -7 -7 -7 -7 -7 -6 -6 -6 -6 -6 -6 -6 -5 -5 -5 -5 -5 -4 -4 -4 -4 -4 -4 -3 -3 ------- Run | Yrd Mat Min Exi Min Mat Fac Low Low Zio Dee Pro Fac Was Fac Low Low Dat Pro Fac Upp Upp War Pro Fac Ext Cet Arc Hub Res Qua Traps Triggered 21 | . . . . . 1 4 . . . . . 2 . 1 . . . . 1 . . . . 2 2 . . 2 6 . Indirectly . | . . . . . . . . . . . . . . . . . . . . . . . . . . . . . . . Trap Hack Attempts . | . . . . . . . . . . . . . . . . . . . . . . . . . . . . . . . Triggered . | . . . . . . . . . . . . . . . . . . . . . . . . . . . . . . . Disarmed . | . . . . . . . . . . . . . . . . . . . . . . . . . . . . . . . Reprogrammed . | . . . . . . . . . . . . . . . . . . . . . . . . . . . . . . . Reused . | . . . . . . . . . . . . . . . . . . . . . . . . . . . . . . . Traps Extracted . | . . . . . . . . . . . . . . . . . . . . . . . . . . . . . . . Installed . | . . . . . . . . . . . . . . . . . . . . . . . . . . . . . . . Triggered 14 | . . . . . . . 1 . . . 1 . . . . . . . . 3 . 8 1 . . . . . . . Machines | -11 -10 -10 -10 -9 -8 -7 -7 -7 -7 -7 -6 -6 -6 -6 -6 -6 -6 -5 -5 -5 -5 -5 -4 -4 -4 -4 -4 -4 -3 -3 ---------- Run | Yrd Mat Min Exi Min Mat Fac Low Low Zio Dee Pro Fac Was Fac Low Low Dat Pro Fac Upp Upp War Pro Fac Ext Cet Arc Hub Res Qua Machines Disabled 71 | . . . . . 2 1 . . . 1 . 8 . 6 4 . . . 6 1 . 3 . 3 3 3 . 16 2 12 Max in Single Turn 15 | . . . . . 1 1 . . . 1 . 2 . 1 2 . . . 3 1 . 1 . 1 1 1 . 15 1 2 Garrison Access 11 | . . . . . 1 2 . . . . . 1 . 1 . . . . 1 . . . . 2 . . . 1 2 . Network Hub 2 | . . . . . . . . . . . . . . . . . . . . . . . . . . . . 2 . . Machines Repaired . | . . . . . . . . . . . . . . . . . . . . . . . . . . . . . . . Machines Dismantled . | . . . . . . . . . . . . . . . . . . . . . . . . . . . . . . . Machines Sabotaged 1 | . . . . . . . . . . . . . . . . . . . . . . . . . . . . 1 . . Overloaded Fab Kills . | . . . . . . . . . . . . . . . . . . . . . . . . . . . . . . . Hacking | -11 -10 -10 -10 -9 -8 -7 -7 -7 -7 -7 -6 -6 -6 -6 -6 -6 -6 -5 -5 -5 -5 -5 -4 -4 -4 -4 -4 -4 -3 -3 --------- Run | Yrd Mat Min Exi Min Mat Fac Low Low Zio Dee Pro Fac Was Fac Low Low Dat Pro Fac Upp Upp War Pro Fac Ext Cet Arc Hub Res Qua Machines Accessed 105 | . 11 . 1 . 9 12 . . . . . 6 . 8 . 1 3 . 7 1 . . . 10 10 1 1 7 11 6 Terminals 61 | . 8 . . . 5 4 . . . . . 3 . 5 . . . . 3 . . . . 5 10 1 . 6 5 6 Fabricators 13 | . . . . . . 4 . . . . . 2 . 1 . . . . 2 . . . . 2 . . . . 2 . Repair Stations 5 | . 1 . . . . . . . . . . 1 . . . . . . 1 . . . . 1 . . . . 1 . Recycling Units 5 | . 2 . . . 2 1 . . . . . . . . . . . . . . . . . . . . . . . . Scanalyzers 4 | . . . . . 1 1 . . . . . . . 1 . . . . . . . . . . . . . . 1 . Garrison Access 10 | . . . . . 1 2 . . . . . . . 1 . . . . 1 . . . . 2 . . . 1 2 . Total Hacks 366 | . 34 . 4 . 23 33 . . . . . 19 . 31 . 1 26 . 28 1 . . . 28 22 3 18 18 53 24 Successful 233 | . 28 . 4 . 14 23 . . . . . 10 . 16 . 1 26 . 19 1 . . . 15 11 . 18 12 27 8 Failed 131 | . 5 . . . 9 10 . . . . . 9 . 15 . . . . 9 . . . . 13 10 3 . 6 26 16 Catastrophic 22 | . . . . . . 2 . . . . . 2 . 1 . . . . 2 . . . . 4 . 1 . 1 6 3 Database Lockouts 2 | . 1 . . . . . . . . . . . . . . . . . . . . . . . 1 . . . . . Manual 137 | . 9 . . . 12 15 . . 1 . . 10 . 13 . . . . 10 . . 1 . 12 12 1 . 12 14 15 Terminals 199 | . 23 . . . 14 11 . . . . . 7 . 19 . . . . 13 . . . . 13 22 3 . 16 34 24 Fabricators 50 | . . . . . . 14 . . . . . 8 . 6 . . . . 9 . . . . 9 . . . . 4 . Repair Stations 23 | . 8 . . . . . . . . . . 4 . . . . . . 2 . . . . 4 . . . . 5 . Recycling Units 8 | . 3 . . . 4 1 . . . . . . . . . . . . . . . . . . . . . . . . Scanalyzers 16 | . . . . . 3 5 . . . . . . . 4 . . . . . . . . . . . . . . 4 . Garrison Access 20 | . . . . . 2 2 . . . . . . . 2 . . . . 4 . . . . 2 . . . 2 6 . Terminal Hacks 115 | . 15 . 4 . 4 5 . . . . . . . 6 . 1 26 . 5 1 . . . 3 8 . 18 5 10 4 Record 32 | . 1 . 4 . . . . . . . . . . . . . 6 . . 1 . . . . . . 18 . 1 1 Part Schematic 16 | . 1 . . . 1 1 . . . . . . . 2 . . 10 . . . . . . . 1 . . . . . Robot Schematic 7 | . . . . . . . . . . . . . . . . . 7 . . . . . . . . . . . . . Robot Analysis 3 | . 1 . . . 1 . . . . . . . . 1 . . . . . . . . . . . . . . . . Prototype ID Bank 6 | . 3 . . . . . . . . . . . . . . . 3 . . . . . . . . . . . . . Open Door 7 | . . . . . . . . . . . . . . . . 1 . . . . . . . . 6 . . . . . Branch Access Points 4 | . 1 . . . . 1 . . . . . . . 1 . . . . 1 . . . . . . . . . . . Terminal Index 2 | . 1 . . . . . . . . . . . . 1 . . . . . . . . . . . . . . . . Garrison Index 1 | . . . . . . . . . . . . . . 1 . . . . . . . . . . . . . . . . Alert Level 14 | . 3 . . . 2 1 . . . . . . . . . . . . 1 . . . . . 1 . . 2 3 1 Unreport Threat 10 | . . . . . . 1 . . . . . . . . . . . . 1 . . . . 2 . . . 1 4 1 Locate Traps 9 | . 2 . . . . 1 . . . . . . . . . . . . 2 . . . . 1 . . . 1 1 1 Dispatch Records 1 | . 1 . . . . . . . . . . . . . . . . . . . . . . . . . . . . . Recall Investigation 1 | . . . . . . . . . . . . . . . . . . . . . . . . . . . . . 1 . Hauler Manifests 2 | . 1 . . . . . . . . . . . . . . . . . . . . . . . . . . 1 . . Fabricator Hacks 29 | . . . . . . 7 . . . . . 5 . 4 . . . . 6 . . . . 4 . . . . 3 . Network Status 2 | . . . . . . . . . . . . 1 . 1 . . . . . . . . . . . . . . . . Load Schematic 18 | . . . . . . 5 . . . . . 3 . 2 . . . . 4 . . . . 3 . . . . 1 . Build 9 | . . . . . . 2 . . . . . 1 . 1 . . . . 2 . . . . 1 . . . . 2 . Repair Station Hacks 19 | . 8 . . . . . . . . . . 3 . . . . . . 2 . . . . 2 . . . . 4 . Scan Component 10 | . 4 . . . . . . . . . . 2 . . . . . . 1 . . . . 1 . . . . 2 . Repair 9 | . 4 . . . . . . . . . . 1 . . . . . . 1 . . . . 1 . . . . 2 . Recycling Unit Hacks 6 | . 1 . . . 4 1 . . . . . . . . . . . . . . . . . . . . . . . . Report Inventory 4 | . 1 . . . 3 . . . . . . . . . . . . . . . . . . . . . . . . . Retrieve Matter 1 | . . . . . . 1 . . . . . . . . . . . . . . . . . . . . . . . . Retrieve Components 1 | . . . . . 1 . . . . . . . . . . . . . . . . . . . . . . . . . Scanalyzer 9 | . . . . . 1 2 . . . . . . . 2 . . . . . . . . . . . . . . 4 . Insert Component 5 | . . . . . 1 1 . . . . . . . 1 . . . . . . . . . . . . . . 2 . Analyze 4 | . . . . . . 1 . . . . . . . 1 . . . . . . . . . . . . . . 2 . Garrison Access Hacks 10 | . . . . . 1 2 . . . . . . . 1 . . . . 1 . . . . 2 . . . 1 2 . Seal Access 10 | . . . . . 1 2 . . . . . . . 1 . . . . 1 . . . . 2 . . . 1 2 . Unauthorized Hacks 45 | . 4 . . . 4 6 . . . . . 2 . 3 . . . . 5 . . . . 4 3 . . 6 4 4 Terminals 34 | . 3 . . . 4 2 . . . . . . . 2 . . . . 3 . . . . 3 3 . . 6 4 4 Assimilate 3 | . 1 . . . . . . . . . . . . . . . . . . . . . . . 1 . . . . 1 Botnet 24 | . 2 . . . 3 2 . . . . . . . 2 . . . . 2 . . . . 2 2 . . 3 3 3 Operators 5 | . . . . . 1 . . . . . . . . . . . . . 1 . . . . 1 . . . 1 1 . Sabotage 2 | . . . . . . . . . . . . . . . . . . . . . . . . . . . . 2 . . Fabricators 10 | . . . . . . 4 . . . . . 2 . 1 . . . . 2 . . . . 1 . . . . . . Haulers 1 | . . . . . . 1 . . . . . . . . . . . . . . . . . . . . . . . . Recompile 9 | . . . . . . 3 . . . . . 2 . 1 . . . . 2 . . . . 1 . . . . . . Repair Stations . | . . . . . . . . . . . . . . . . . . . . . . . . . . . . . . . Recycling Units 1 | . 1 . . . . . . . . . . . . . . . . . . . . . . . . . . . . . Reject 1 | . 1 . . . . . . . . . . . . . . . . . . . . . . . . . . . . . Scanalyzers . | . . . . . . . . . . . . . . . . . . . . . . . . . . . . . . . Garrison Access . | . . . . . . . . . . . . . . . . . . . . . . . . . . . . . . . Data Cores Recovered 3 | . 1 . . . . . . . . . . . . . . . . . . . . . . . . . . . 1 1 Used . | . . . . . . . . . . . . . . . . . . . . . . . . . . . . . . . Hacking Detections 69 | . 5 . . . 8 9 . . . . . 4 . 7 . . . . 6 . . . . 7 5 1 . 5 7 5 Full Trace Events 10 | . . . . . 2 2 . . . . . 2 . . . . . . . . . . . 2 . . . . 2 . Feedback Events . | . . . . . . . . . . . . . . . . . . . . . . . . . . . . . . . Feedback Blocked . | . . . . . . . . . . . . . . . . . . . . . . . . . . . . . . . Robot Schematics Acquired 12 | . . . . . . . . . . . . . . . . . 7 . . . . . . . . . . . . 5 Robots Built . | . . . . . . . . . . . . . . . . . . . . . . . . . . . . . . . Authchips . | . . . . . . . . . . . . . . . . . . . . . . . . . . . . . . . Time . | . . . . . . . . . . . . . . . . . . . . . . . . . . . . . . . Total Robot Build Rating . | . . . . . . . . . . . . . . . . . . . . . . . . . . . . . . . Part Schematics Acquired 34 | . 1 . . . 1 1 . . . . . . . 3 . . 10 . . . . . . . 1 . . . 2 15 Parts Built 14 | . . . . . . 3 . . . . . 2 . 1 . . . . 4 . . . . 2 . . . . 2 . Authchips 6 | . . . . . . 1 . . . . . 1 . 1 . . . . 2 . . . . 1 . . . . . . Time 529 | . . . . . . 134 . . . . . 84 . 102 . . . . 59 . . . . 28 . . . . 122 . Total Part Build Rating 74 | . . . . . . 14 . . . . . 8 . 8 . . . . 18 . . . . 8 . . . . 18 . Parts Repaired 9 | . 4 . . . . . . . . . . 1 . . . . . . 1 . . . . 1 . . . . 2 . Time 306 | . 104 . . . . . . . . . . 19 . . . . . . 108 . . . . 22 . . . . 53 . Parts Recycled . | . . . . . . . . . . . . . . . . . . . . . . . . . . . . . . . Recycled Matter . | . . . . . . . . . . . . . . . . . . . . . . . . . . . . . . . Retrieved Matter . | . . . . . . . . . . . . . . . . . . . . . . . . . . . . . . . Retrieved Components 10 | . . . . . 10 . . . . . . . . . . . . . . . . . . . . . . . . . Parts Scanalyzed 3 | . . . . . 1 . . . . . . . . . . . . . . . . . . . . . . . 2 . Part Schematics Acquired 3 | . . . . . . . . . . . . . . 1 . . . . . . . . . . . . . . 2 . Parts Damaged . | . . . . . . . . . . . . . . . . . . . . . . . . . . . . . . . Bothacking | -11 -10 -10 -10 -9 -8 -7 -7 -7 -7 -7 -6 -6 -6 -6 -6 -6 -6 -5 -5 -5 -5 -5 -4 -4 -4 -4 -4 -4 -3 -3 ------------ Run | Yrd Mat Min Exi Min Mat Fac Low Low Zio Dee Pro Fac Was Fac Low Low Dat Pro Fac Upp Upp War Pro Fac Ext Cet Arc Hub Res Qua Used RIF Installer . | . . . . . . . . . . . . . . . . . . . . . . . . . . . . . . . Robots Hacked . | . . . . . . . . . . . . . . . . . . . . . . . . . . . . . . . Non-combat . | . . . . . . . . . . . . . . . . . . . . . . . . . . . . . . . Combat . | . . . . . . . . . . . . . . . . . . . . . . . . . . . . . . . Robot Hacks Applied . | . . . . . . . . . . . . . . . . . . . . . . . . . . . . . . . Relay Couplers Released 6 | . . . . . . . . . . . . . . . . . . . . . . . . 3 . . . . 3 . Programmers 6 | . . . . . . . . . . . . . . . . . . . . . . . . 3 . . . . 3 . Fabnet Peak Effective % . | . . . . . . . . . . . . . . . . . . . . . . . . . . . . . . . Robots Rewired . | . . . . . . . . . . . . . . . . . . . . . . . . . . . . . . . Allies Hacked . | . . . . . . . . . . . . . . . . . . . . . . . . . . . . . . . Hacks Repelled . | . . . . . . . . . . . . . . . . . . . . . . . . . . . . . . . Allies | -11 -10 -10 -10 -9 -8 -7 -7 -7 -7 -7 -6 -6 -6 -6 -6 -6 -6 -5 -5 -5 -5 -5 -4 -4 -4 -4 -4 -4 -3 -3 -------- Run | Yrd Mat Min Exi Min Mat Fac Low Low Zio Dee Pro Fac Was Fac Low Low Dat Pro Fac Upp Upp War Pro Fac Ext Cet Arc Hub Res Qua Total Allies 24 | . 1 . . 3 . . . . 2 . . . . . . . . . . . . . . . 12 5 . . . 1 Largest Group 7 | . 1 1 . 3 2 . . . 2 2 . . . . . . . . . . . . . . 5 7 6 . . 1 Highest-Rated Group 677 | . 10 10 . 40 32 . . . 192 192 . . . . . . . . . . . . . . 248 677 639 . . 26 Highest-Rated Ally 159 | . 10 10 . 16 16 . . . 96 96 . . . . . . . . . . . . . . 159 159 159 . . 26 Total Orders . | . . . . . . . . . . . . . . . . . . . . . . . . . . . . . . . Ally Attacks 247 | . . . . 12 9 . . . . 51 . . . . . . . . . . . . . . 34 92 49 . . . Total Damage 8072 | . . . . 122 103 . . . . 899 . . . . . . . . . . . . . . 1104 3212 2632 . . . Kills 37 | . . . . 2 . . . . . 7 . . . . . . . . . . . . . . 6 13 9 . . . Allies Corrupted 1 | . . . . . . . . . . . . . . . . . . . . . . . . . 1 . . . . . Allies Melted . | . . . . . . . . . . . . . . . . . . . . . . . . . . . . . . . Intel | -11 -10 -10 -10 -9 -8 -7 -7 -7 -7 -7 -6 -6 -6 -6 -6 -6 -6 -5 -5 -5 -5 -5 -4 -4 -4 -4 -4 -4 -3 -3 ------- Run | Yrd Mat Min Exi Min Mat Fac Low Low Zio Dee Pro Fac Was Fac Low Low Dat Pro Fac Upp Upp War Pro Fac Ext Cet Arc Hub Res Qua Robot Analysis Total 137 | . 1 . . . 1 . . . . . . . . 1 . . 134 . . . . . . . . . . . . . Derelict Logs Recovered 12 | . . 1 . 1 . . . 1 . . 1 . . . 1 1 . . . 1 2 . 3 . . . . . . . Drone Launches . | . . . . . . . . . . . . . . . . . . . . . . . . . . . . . . . Drone Recoveries . | . . . . . . . . . . . . . . . . . . . . . . . . . . . . . . . Exploration | -11 -10 -10 -10 -9 -8 -7 -7 -7 -7 -7 -6 -6 -6 -6 -6 -6 -6 -5 -5 -5 -5 -5 -4 -4 -4 -4 -4 -4 -3 -3 ------------- Run | Yrd Mat Min Exi Min Mat Fac Low Low Zio Dee Pro Fac Was Fac Low Low Dat Pro Fac Upp Upp War Pro Fac Ext Cet Arc Hub Res Qua Turns Passed 40920 | 26 1579 116 364 906 2350 1474 390 995 1360 3515 965 1539 607 1810 1243 733 1146 1217 1304 2076 1105 1103 1547 2060 1867 967 771 755 2880 2150 Spaces Moved 14885 | 11 731 63 209 478 935 722 223 520 856 1245 417 509 246 635 561 315 180 353 366 602 455 383 386 645 713 269 95 239 902 621 Core . | . . . . . . . . . . . . . . . . . . . . . . . . . . . . . . . Treads 217 | . 197 . . . . . . . . 8 . . . . . . . . . . . . . . . . . . . 12 Legs 9578 | 11 37 . . . . . . . . 650 417 509 246 635 561 315 180 353 366 602 455 383 386 645 713 269 95 239 902 609 Wheels 5090 | . 497 63 209 478 935 722 223 520 856 587 . . . . . . . . . . . . . . . . . . . . Hover . | . . . . . . . . . . . . . . . . . . . . . . . . . . . . . . . Flight . | . . . . . . . . . . . . . . . . . . . . . . . . . . . . . . . Fastest Speed 120 | 120 120 175 175 175 175 145 160 160 145 145 210 210 210 210 210 210 210 210 210 210 240 210 240 210 240 240 210 210 210 240 Average Speed 210 | 120 168 175 175 175 181 167 160 160 155 195 210 237 239 239 210 210 210 210 231 238 240 239 240 234 240 240 222 239 239 270 Slowest Speed 360 | 120 175 175 175 175 190 190 160 160 160 330 210 240 240 300 210 210 240 210 240 240 240 240 240 240 240 240 240 240 240 360 Overloaded Moves . | . . . . . . . . . . . . . . . . . . . . . . . . . . . . . . . Propulsion Burnouts . | . . . . . . . . . . . . . . . . . . . . . . . . . . . . . . . Robots Hopped . | . . . . . . . . . . . . . . . . . . . . . . . . . . . . . . . Cave-ins Triggered . | . . . . . . . . . . . . . . . . . . . . . . . . . . . . . . . Exploration Rate (%) 52 | 2 96 17 58 91 56 16 43 61 84 84 53 17 95 25 69 43 80 60 10 64 50 50 44 18 84 73 86 25 30 45 Regions Visited 30 Branch Regions 21 Pre-discovered Areas 36 | . . . 1 1 . . . . . . . . . . . . 31 . . 1 1 . 1 . . . . . . . Known Exits Taken 12 | . 1 . . . . 1 . . . . . . . 1 . . . 1 1 . . . 1 1 1 1 1 1 1 . Unknown Exits Taken 16 | 1 . 1 1 1 1 . 1 1 1 1 1 . . . 1 1 1 . . 1 1 1 . . . . . . . . Scrap Searched 27 | . . . . 2 . . 1 . 3 . 5 . . . 5 2 . 2 . 2 2 . 3 . . . . . . . Spaces Dug 266 | . . . . 1 5 12 . 8 2 6 6 13 4 17 6 . . 6 31 1 . . . 24 . . . 10 29 85 Terrain Destroyed 1181 | . . . . 13 5 17 66 12 2 72 29 108 4 51 42 16 5 17 95 16 1 3 19 99 10 5 . 154 96 224 Melee 22 | . . . . 1 5 5 . 8 2 1 . . . . . . . . . . . . . . . . . . . . Projectile 600 | . . . . . . . . 3 . 40 29 69 4 51 14 16 5 17 45 16 1 3 19 52 10 5 . 27 96 78 AOE 558 | . . . . 12 . 12 66 . . 31 . 39 . . 28 . . . 50 . . . . 47 . . . 127 . 146 Terrain Rammed . | . . . . . . . . . . . . . . . . . . . . . . . . . . . . . . . Walls Destroyed . | . . . . . . . . . . . . . . . . . . . . . . . . . . . . . . . Machines Disabled . | . . . . . . . . . . . . . . . . . . . . . . . . . . . . . . . Actions | -11 -10 -10 -10 -9 -8 -7 -7 -7 -7 -7 -6 -6 -6 -6 -6 -6 -6 -5 -5 -5 -5 -5 -4 -4 -4 -4 -4 -4 -3 -3 --------- Run | Yrd Mat Min Exi Min Mat Fac Low Low Zio Dee Pro Fac Was Fac Low Low Dat Pro Fac Upp Upp War Pro Fac Ext Cet Arc Hub Res Qua Total 22231 | 17 956 66 208 512 1399 891 241 580 885 2138 470 702 262 789 591 360 877 814 743 1215 460 501 974 1036 796 568 658 332 1311 879 Wait 4985 | . 116 . . 10 257 58 . . 6 612 18 62 3 55 . 25 636 440 299 511 . 62 557 238 20 274 549 13 115 49 Move 14856 | 10 730 62 208 477 934 721 222 519 855 1244 416 509 245 634 560 314 179 352 365 601 454 382 385 644 712 268 94 238 901 621 Hop . | . . . . . . . . . . . . . . . . . . . . . . . . . . . . . . . Pick Up 289 | 1 24 . . 2 24 17 1 3 8 37 5 17 1 6 2 4 5 1 10 28 1 7 3 18 7 4 . 10 24 19 Fast Attach 82 | 1 3 . . . 11 6 . . 1 22 2 4 3 6 . . . 2 2 3 . 1 . . . . . . 8 7 Attach 100 | . 4 1 . . 13 5 1 5 3 19 2 4 . 2 1 . 3 1 6 4 . 1 . 6 . 2 4 . 3 10 Detach 164 | . 2 1 . . 6 1 1 . 2 26 2 10 4 3 4 . 10 7 5 16 . 5 7 8 2 3 10 2 13 14 Swap 239 | 1 6 . . 3 30 22 2 7 1 22 . 4 . 2 3 . 1 1 11 . . . 2 26 9 2 . 15 65 4 Drop 288 | 1 7 . . 1 34 16 1 . 6 51 7 17 4 10 2 4 3 2 4 29 1 8 3 13 7 3 . 7 26 21 Fire 1144 | 3 64 2 . 13 85 35 13 31 . 95 18 73 2 71 19 13 22 8 41 23 4 35 17 83 34 12 1 47 146 134 Melee 67 | . . . . 6 5 10 . 15 3 10 . . . . . . 18 . . . . . . . . . . . . . Ram . | . . . . . . . . . . . . . . . . . . . . . . . . . . . . . . . Kick 2 | . . . . . . . . . . . . 2 . . . . . . . . . . . . . . . . . . Crush . | . . . . . . . . . . . . . . . . . . . . . . . . . . . . . . . Escape Stasis 15 | . . . . . . . . . . . . . . . . . . . . . . . . . 5 . . . 10 . Rewire . | . . . . . . . . . . . . . . . . . . . . . . . . . . . . . . . Trap . | . . . . . . . . . . . . . . . . . . . . . . . . . . . . . . . Miscellaneous . | . . . . . . . . . . . . . . . . . . . . . . . . . . . . . . . Route ------- -11/Scrapyard -10/Materials (discovered 6 exits: [*Mat x3] / *Min x2 / [*Sub]) -10/Mines (discovered 2 exits: [*Mat] / *Exi) -10/Exiles -9/Mines (discovered 2 exits: *Mat x2) -8/Materials -7/Factory (discovered 3 exits: *Fac / *Low x2) -7/Lower Caves -7/Lower Caves (discovered 2 exits: *Fac / *Zio) -7/Zion (discovered 2 exits: [*Dee] / [*Pro]) -7/Deep Caves -6/Proximity Caves -6/Factory (discovered 2 exits: *Fac / Low) -6/Waste -6/Factory (discovered 4 exits: *Fac x2 / *Low x2) -6/Lower Caves -6/Lower Caves -6/Data Miner -5/Proximity Caves -5/Factory (discovered 3 exits: Fac / *Upp x2) -5/Upper Caves -5/Upper Caves -5/Warlord -4/Proximity Caves -4/Factory -4/Extension (discovered 2 exits: *Res / *Cet) -4/Cetus (discovered 2 exits: *Res / *Arc) -4/Archives (discovered 2 exits: *Res / *Hub) -4/Hub_04(d) -3/Research (discovered 5 exits: Res x2 / *Arm / *Qua x2) -3/Quarantine (discovered 1 exit: *Res) History --------- Turn | Location | Event 12 | -11/Scrapyard | Discovered new exit (range 3) 27 | -11/Scrapyard | Entered Materials 308 | -10/Materials | Build established: Mutant 653 | -10/Materials | Discovered new exit (range 14) 786 | -10/Materials | Discovered new exit (range 14) 1024 | -10/Materials | Central database locked down 1041 | -10/Materials | Discovered new exit (range 5) 1152 | -10/Materials | Repaired Assault Rifle 1179 | -10/Materials | Repaired Lgt. Treads 1211 | -10/Materials | Repaired Lgt. Treads 1238 | -10/Materials | Repaired Com. Wheel 1269 | -10/Materials | Discovered new exit (range 16) 1494 | -10/Materials | Identified exit to Mines 1502 | -10/Materials | Discovered new exit (range 16) 1525 | -10/Materials | Build established: Scavenger-Mutant 1564 | -10/Materials | Discovered new exit (range 15) 1606 | -10/Materials | Entered Mines 1606 | -10/Mines | Accompanied by 1 ally 1607 | -10/Mines | Assembled infested the area 1612 | -10/Mines | Assisted by a Guerilla fighting off Assembled 1638 | -10/Mines | Learned Materials stockpile data 1663 | -10/Mines | Deemed a non-threat by the Exiles lab entrance 1663 | -10/Mines | Discovered new exit (range 5) 1673 | -10/Mines | Discovered new exit (range 15) 1722 | -10/Mines | Met a Derelict bent on vengeance 1722 | -10/Mines | Entered Exiles 1766 | -10/Exiles | Met 8R-AWN 1796 | -10/Exiles | Met EX-HEX 1906 | -10/Exiles | Met EX-DEC 1950 | -10/Exiles | Learned location of Zion (-7) 2064 | -10/Exiles | Discovered new exit (range 12) 2086 | -10/Exiles | Entered Mines 2087 | -9/Mines | Learned location of Storage (-9) 2240 | -9/Mines | Discovered new exit (range 7) 2481 | -9/Mines | Learned Materials interactive machine intel 2481 | -9/Mines | Discovered new exit (range 10) 2579 | -9/Mines | Excavation squad dispatched 2579 | -9/Mines | A large section of the Mines collapsed 2707 | -9/Mines | Found a damaged Exp. Sensor Array with a note attached 2711 | -9/Mines | Found Prototype Device 2797 | -9/Mines | Assisted by bots powering up and referring to "LRC-V3" 2992 | -9/Mines | Entered Materials 2992 | -8/Materials | Accompanied by 2 allies 2992 | -8/Materials | Evolved 4 slots: Utility x3, Weapon x1 2993 | -8/Materials | Identified Exp. Sensor Array 2994 | -8/Materials | Loaded intel: 19 interactive machine locations 3241 | -8/Materials | Garrison activated, responded to threat 3299 | -8/Materials | Build established: Scavenger-Skirmisher 4276 | -8/Materials | Garrison activated, responded to threat 4530 | -8/Materials | Discovered new exit (range 3) 5342 | -8/Materials | Entered Factory 5342 | -7/Factory | Evolved 2 slots: Utility x2 5463 | -7/Factory | Discovered new exit (range 6) 5605 | -7/Factory | Identified exit to Lower Caves 5948 | -7/Factory | Discovered new exit (range 12) 6027 | -7/Factory | Fabricated Adv. System Shield? 6353 | -7/Factory | Build established: Scavenger-Mutant 6760 | -7/Factory | Fabricated Powered Armor (x2) 6816 | -7/Factory | Entered Lower Caves 7053 | -7/Lower Caves | Build established: Tank 7183 | -7/Lower Caves | Discovered new exit (range 14) 7206 | -7/Lower Caves | Entered another Lower Caves area 7358 | -7/Lower Caves | Discovered new exit (range 10) 7932 | -7/Lower Caves | Encountered a Warlord checkpoint 8172 | -7/Lower Caves | Discovered new exit (range 5) 8201 | -7/Lower Caves | Entered Zion 8289 | -7/Zion | System corruption cleaned by Quarantine Array 8325 | -7/Zion | Discovered new exit (range 16) 8347 | -7/Zion | Build established: Mutant 8679 | -7/Zion | Given the Hacking Drone Bay 8680 | -7/Zion | Found Prototype Device 8680 | -7/Zion | Identified Hacking Drone Bay 8966 | -7/Zion | Received a hallucinogenic algorithm 9322 | -7/Zion | Discovered new exit (range 5) 9323 | -7/Zion | Saw the warning signs outside the Deep Caves entrance 9373 | -7/Zion | Given A8's code to call for help 9553 | -7/Zion | Enhanced Grunt warped into view, answering call for help 9554 | -7/Zion | Enhanced Grunt warped into view, answering call for help 9561 | -7/Zion | Entered Deep Caves 9561 | -7/Deep Caves | Accompanied by 2 allies 9768 | -7/Deep Caves | Attacked by Z-Imprinter 9784 | -7/Deep Caves | Allies destroyed Z-Imprinter 9822 | -7/Deep Caves | Found Prototype Device 9822 | -7/Deep Caves | Identified Zio. Metafield Generator 9833 | -7/Deep Caves | Found Prototype Protection 9833 | -7/Deep Caves | Identified Zio. Weapon Casing 10055 | -7/Deep Caves | Z-Facility disabled 10148 | -7/Deep Caves | Found Zio. Weapon Casing 10152 | -7/Deep Caves | Found Zio. Weapon Casing 10244 | -7/Deep Caves | Found Prototype Protection 10244 | -7/Deep Caves | Identified Zio. Heavy Carapace 10416 | -7/Deep Caves | Build established: Scavenger-Tank 10479 | -7/Deep Caves | Discovered new exit (range 6) 10650 | -7/Deep Caves | Spotted AG-70634 10686 | -7/Deep Caves | Destroyed AG-70634 10710 | -7/Deep Caves | Found GOLEM Unit 10943 | -7/Deep Caves | Build established: Tank 10997 | -7/Deep Caves | Spotted AG-49536 11035 | -7/Deep Caves | Exposed GOLEM chamber 11036 | -7/Deep Caves | Triggered Deep Caves wall 11039 | -7/Deep Caves | Destroyed AG-49536 11049 | -7/Deep Caves | Core integrity fell below 50% 11085 | -7/Deep Caves | Lost 6 parts (1n5u) 11086 | -7/Deep Caves | Spotted AS-59226 11088 | -7/Deep Caves | Spotted AS-29568 11105 | -7/Deep Caves | Destroyed AS-29568 11111 | -7/Deep Caves | Destroyed AS-59226 11130 | -7/Deep Caves | Lost 3 parts (1p1n1u) 11132 | -7/Deep Caves | Destroyed 51 combat bots 11249 | -7/Deep Caves | Found Prototype Storage 11249 | -7/Deep Caves | Identified Superbattery 11398 | -7/Deep Caves | Found GOLEM Unit 11405 | -7/Deep Caves | Found GOLEM Unit 11412 | -7/Deep Caves | Found GOLEM Unit 11695 | -7/Deep Caves | Build established: Golem 11698 | -7/Deep Caves | Found GOLEM Unit 11727 | -7/Deep Caves | Found GOLEM Unit 12422 | -7/Deep Caves | Build established: Scavenger-Golem 12626 | -7/Deep Caves | Found Zio. Weapon Casing 13076 | -7/Deep Caves | Entered Proximity Caves 13098 | -6/Proximity Caves | Encountered a Derelict guarding a broken Freighter 13105 | -6/Proximity Caves | Build established: Scavenger-Tank 13115 | -6/Proximity Caves | Core integrity fell below 20% 13180 | -6/Proximity Caves | Spotter reported a threat 13187 | -6/Proximity Caves | Found Prototype Launcher 13298 | -6/Proximity Caves | Spotter reported a threat 13327 | -6/Proximity Caves | Learned Factory stockpile data 13431 | -6/Proximity Caves | Received a Behemoth hack from an annoying Tinkerer 13573 | -6/Proximity Caves | Attracted the attention of an 0b10 checkpoint 14014 | -6/Proximity Caves | Discovered new exit (range 14) 14040 | -6/Proximity Caves | Identified Adv. Micro-nuke Launcher 14041 | -6/Proximity Caves | Entered Factory 14041 | -6/Factory | Evolved 2 slots: Power x1, Utility x1 14042 | -6/Factory | Identified exit to Lower Caves 14342 | -6/Factory | Build established: Golem 14386 | -6/Factory | Repaired Imp. Sensor Array 14835 | -6/Factory | Discovered new exit (range 10) 14838 | -6/Factory | Garrison activated, responded to threat 15175 | -6/Factory | Fabricated Powered Armor (x2) 15287 | -6/Factory | Spotted B-75 Beast 15415 | -6/Factory | Identified exit to Factory 15441 | -6/Factory | First assault squad dispatched 15580 | -6/Factory | Sucked down chute 15580 | -6/Factory | Entered Waste 15580 | -6/Waste | The area was eerily silent 16105 | -6/Waste | Discovered new exit (range 12) 16187 | -6/Waste | Entered Factory 16687 | -6/Factory | Fabricated Exp. Sensor Array (x1) 16728 | -6/Factory | Build established: Hacker-Golem 16783 | -6/Factory | Discovered exit to Factory (range 16) 16962 | -6/Factory | Discovered exit to Factory (range 15) 17384 | -6/Factory | Garrison activated, responded to threat 17997 | -6/Factory | Entered Lower Caves 18199 | -6/Lower Caves | Learned location of 1 exit from Factory 18470 | -6/Lower Caves | Attracted the attention of an 0b10 outpost 18503 | -6/Lower Caves | Destroyed 9 combat bots 19010 | -6/Lower Caves | Attacked by a delusional Derelict stockpiling Unaware 19172 | -6/Lower Caves | Discovered new exit (range 5) 19240 | -6/Lower Caves | Entered another Lower Caves area 19272 | -6/Lower Caves | Learned Factory emergency access door positions 19364 | -6/Lower Caves | Ambushed by wild Derelicts 19661 | -6/Lower Caves | Encountered a Warlord checkpoint 19891 | -6/Lower Caves | Discovered new exit (range 14) 19973 | -6/Lower Caves | Entered Data Miner 19973 | -6/Data Miner | Discovered new exit (range 6) 20013 | -6/Data Miner | Met Data Miner 20051 | -6/Data Miner | Learned location of Section 7 (-3) 20051 | -6/Data Miner | Acquired the access code to Warlord's prototype stash 20091 | -6/Data Miner | Received God Mode back door access code from Data Miner 20651 | -6/Data Miner | Interfaced with the Data Conduit 20761 | -6/Data Miner | Core integrity fell below 50% 21119 | -6/Data Miner | Entered Proximity Caves 21364 | -5/Proximity Caves | Attracted the attention of an 0b10 checkpoint 21866 | -5/Proximity Caves | Discovered exit to Factory (range 11) 22336 | -5/Proximity Caves | Entered Factory 22336 | -5/Factory | Evolved 2 slots: Utility x2 22337 | -5/Factory | Identified exit to Factory 22339 | -5/Factory | Loaded intel: 234 machine locations 22461 | -5/Factory | Identified exit to Upper Caves 22603 | -5/Factory | Fabricated Weapon Mount (x2) 22631 | -5/Factory | Fabricated Powered Armor (x2) 23050 | -5/Factory | Repaired Exp. Sensor Array 23640 | -5/Factory | Entered Upper Caves 24135 | -5/Upper Caves | Attracted the attention of an 0b10 outpost 24200 | -5/Upper Caves | Destroyed 7 combat bots 25415 | -5/Upper Caves | Build established: Golem 25495 | -5/Upper Caves | Found Alien Artifact 25636 | -5/Upper Caves | Encountered a Warlord checkpoint 25664 | -5/Upper Caves | Discovered new exit (range 12) 25716 | -5/Upper Caves | Entered another Upper Caves area 25717 | -5/Upper Caves | Encountered a Warlord checkpoint 26211 | -5/Upper Caves | Spotted B-75 Beast 26243 | -5/Upper Caves | Destroyed B-75 Beast 26501 | -5/Upper Caves | Learned Factory stockpile data 26789 | -5/Upper Caves | Discovered new exit (range 5) 26821 | -5/Upper Caves | Entered Warlord 26889 | -5/Warlord | Discovered new exit (range 12) 27332 | -5/Warlord | Met Warlord 27357 | -5/Warlord | Warlord's base attacked by MAIN.C 27364 | -5/Warlord | Opened Warlord's prototype stash 27383 | -5/Warlord | Identified Dimensional Node Initializer 27383 | -5/Warlord | Initialized slip node 27389 | -5/Warlord | Found Vortex Chain Reactor 27400 | -5/Warlord | Found Thermal Barrier 27686 | -5/Warlord | Destroyed 9 combat bots 27707 | -5/Warlord | Warlord forces counterattacked 27781 | -5/Warlord | Spotted Executioner 27794 | -5/Warlord | Spotted Striker 27832 | -5/Warlord | Lost 8 allies 27844 | -5/Warlord | Spotted Executioner 27866 | -5/Warlord | Spotted Executioner 27878 | -5/Warlord | Spotted Executioner 27924 | -5/Warlord | Entered Proximity Caves 27936 | -4/Proximity Caves | Lost 11 allies 27980 | -4/Proximity Caves | Spotter reported a threat 28032 | -4/Proximity Caves | Spotter reported a threat 28035 | -4/Proximity Caves | Learned 12 Research zone layouts 28125 | -4/Proximity Caves | Learned 4 Research zone layouts 28498 | -4/Proximity Caves | Attracted the attention of an 0b10 checkpoint 28846 | -4/Proximity Caves | Discovered exit to Factory (range 4) 28872 | -4/Proximity Caves | Spotted B-86 Titan 29471 | -4/Proximity Caves | Entered Factory 29471 | -4/Factory | Evolved 2 slots: Utility x2 29473 | -4/Factory | Loaded intel: 258 machine locations 29624 | -4/Factory | Fabricated Powered Armor? 29736 | -4/Factory | Repaired System Restoration Module 29947 | -4/Factory | Build established: Hacker-Golem 30763 | -4/Factory | Intercept squad dispatched 30786 | -4/Factory | Spotted Tracker 30796 | -4/Factory | Destroyed Tracker 30877 | -4/Factory | Spotted Combat Programmer 30882 | -4/Factory | Destroyed Combat Programmer 31111 | -4/Factory | Destroyed 10 combat bots 31423 | -4/Factory | Discovered new exit (range 16) 31471 | -4/Factory | First assault squad dispatched 31529 | -4/Factory | Identified exit to Extension 31531 | -4/Factory | Entered Extension 31532 | -4/Extension | Loaded intel: 33 machine locations 32020 | -4/Extension | Rescued a captive Derelict 32021 | -4/Extension | Rescued a captive Derelict 32141 | -4/Extension | Rescued a captive Derelict 32142 | -4/Extension | Rescued a captive Derelict 32278 | -4/Extension | Rescued a captive Derelict 32600 | -4/Extension | Destroyed B-86 Titan 32670 | -4/Extension | Spotted B-86 Titan 32701 | -4/Extension | Lost 5 allies 32707 | -4/Extension | Destroyed B-86 Titan 32836 | -4/Extension | Central database locked down 32844 | -4/Extension | Rescued a captive Derelict 32882 | -4/Extension | Rescued a captive Derelict 33092 | -4/Extension | Rescued a captive Derelict 33093 | -4/Extension | Rescued a captive Derelict 33189 | -4/Extension | Lost 4 allies 33191 | -4/Extension | Rescued A7 33300 | -4/Extension | Rescued a captive Derelict 33301 | -4/Extension | Rescued a captive Derelict 33381 | -4/Extension | Discovered new exit (range 10) 33384 | -4/Extension | Discovered new exit (range 6) 33396 | -4/Extension | Identified exit to Cetus 33398 | -4/Extension | Entered Cetus 33398 | -4/Cetus | Accompanied by 3 allies (A7) 33399 | -4/Cetus | Loaded intel: 24 machine locations 33403 | -4/Cetus | Acquired a Cetus Manufacturing Module code from A7 33430 | -4/Cetus | Spotted Cetus Guard 33430 | -4/Cetus | Spotted Cetus Guard 33433 | -4/Cetus | Allies destroyed Cetus Guard 33433 | -4/Cetus | Spotted Cetus Guard 33433 | -4/Cetus | Spotted Cetus Guard 33435 | -4/Cetus | Destroyed Cetus Guard 33444 | -4/Cetus | Allies destroyed Cetus Guard 33456 | -4/Cetus | Allies destroyed Cetus Guard 33566 | -4/Cetus | Escorted A7 to Cetus Mainframe 33589 | -4/Cetus | Started Cetus Manufacturing Module 33614 | -4/Cetus | Manufactured an Enhanced Grunt 33639 | -4/Cetus | Manufactured an Enhanced Grunt 33662 | -4/Cetus | Discovered new exit (range 16) 33664 | -4/Cetus | Manufactured an Enhanced Grunt 33689 | -4/Cetus | Manufactured an Enhanced Grunt 33714 | -4/Cetus | Manufactured an Enhanced Grunt 33763 | -4/Cetus | Destroyed Cetus Guard 33766 | -4/Cetus | Spotted Cetus Guard 33766 | -4/Cetus | Spotted Cetus Guard 33772 | -4/Cetus | Spotted Cetus Guard 33774 | -4/Cetus | Allies destroyed Cetus Guard 33782 | -4/Cetus | Allies destroyed Cetus Guard 33785 | -4/Cetus | Discovered new exit (range 16) 33792 | -4/Cetus | Allies destroyed Cetus Guard 33797 | -4/Cetus | Met Revision 17 34246 | -4/Cetus | Cetus Manufacturing Module disabled 34363 | -4/Cetus | Identified exit to Archives 34365 | -4/Cetus | Entered Archives 34365 | -4/Archives | Accompanied by 6 allies (A7) 34366 | -4/Archives | Loaded intel: 8 machine locations 34370 | -4/Archives | Received a hacking code to weaken MAIN.C 34394 | -4/Archives | Met Zhirov 34400 | -4/Archives | Reinforcements dispatched to Archives 34421 | -4/Archives | Read partially decrypted archive contents 34425 | -4/Archives | Discovered new exit (range 15) 34445 | -4/Archives | Reinforcements dispatched to Archives 34447 | -4/Archives | Zhirov warped through subspace 34465 | -4/Archives | Zhirov detonated Archives 34479 | -4/Archives | Identified exit to Hub_04(d) 34492 | -4/Archives | Lost 6 allies 34496 | -4/Archives | Lost 6 parts (4u2w) 35048 | -4/Archives | Discovered new exit (range 15) 35136 | -4/Archives | Entered Hub_04(d) 35137 | -4/Hub_04(d) | Loaded intel: 112 machine locations 35746 | -4/Hub_04(d) | Discovered new exit (range 4) 35750 | -4/Hub_04(d) | Network Hub disabled 35763 | -4/Hub_04(d) | Identified exit to Research 35820 | -4/Hub_04(d) | Network Hub disabled 35891 | -4/Hub_04(d) | Entered Research 35891 | -3/Research | Evolved 2 slots: Power x2 35892 | -3/Research | Identified exit to Research 35892 | -3/Research | Identified exit to Quarantine 35893 | -3/Research | Loaded intel: 102 machine locations 36634 | -3/Research | Build established: Generator-Golem 36708 | -3/Research | Intercept squad dispatched 36753 | -3/Research | Spotted Tracker 36757 | -3/Research | Destroyed Tracker 36757 | -3/Research | Spotted Tracker 36772 | -3/Research | Destroyed Tracker 36779 | -3/Research | Spotted Combat Programmer 36781 | -3/Research | Fabricated Quantum Reactor (x2) 36793 | -3/Research | Destroyed Combat Programmer 36795 | -3/Research | Spotted Combat Programmer 36801 | -3/Research | Destroyed Combat Programmer 37111 | -3/Research | Repaired Powered Armor 37156 | -3/Research | Repaired Imp. Force Field 37719 | -3/Research | Intercept squad dispatched 37734 | -3/Research | Spotted Tracker 37745 | -3/Research | Destroyed Tracker 37757 | -3/Research | Found Exp. Phase Shifter 37767 | -3/Research | Spotted Combat Programmer 37771 | -3/Research | Destroyed Combat Programmer 38040 | -3/Research | Discovered new exit (range 16) 38120 | -3/Research | Identified exit to Armory 38244 | -3/Research | Destroyed 10 combat bots 38391 | -3/Research | First assault squad dispatched 38645 | -3/Research | Destroyed 9 combat bots 38768 | -3/Research | Intercept squad dispatched 38771 | -3/Research | Entered Quarantine 38772 | -3/Quarantine | Loaded intel: 93 machine locations 38824 | -3/Quarantine | Scanned by Researcher 38870 | -3/Quarantine | Found Alien Artifact 38870 | -3/Quarantine | Identified Phase Armor 38984 | -3/Quarantine | Found Alien Artifact 39122 | -3/Quarantine | Found Alien Artifact 39122 | -3/Quarantine | Identified Phase Redirector 39368 | -3/Quarantine | Discovered exit to Research (range 9) 39521 | -3/Quarantine | First assault squad dispatched 39547 | -3/Quarantine | System corruption reached 10% 39708 | -3/Quarantine | Intercept squad dispatched 39711 | -3/Quarantine | Spotted Tracker 39718 | -3/Quarantine | Spotted Combat Programmer 39718 | -3/Quarantine | Destroyed Tracker 39739 | -3/Quarantine | Destroyed Combat Programmer 40219 | -3/Quarantine | Spotted Fortress 40490 | -3/Quarantine | Found Alien Energy Cannon 40490 | -3/Quarantine | Identified Core Cannon 40769 | -3/Quarantine | Core integrity fell below 50% 40807 | -3/Quarantine | Intercept squad dispatched 40811 | -3/Quarantine | Spotted Tracker 40817 | -3/Quarantine | Spotted Combat Programmer 40834 | -3/Quarantine | Core integrity fell below 20% 40835 | -3/Quarantine | Garrison activated, responded to threat 40910 | -3/Quarantine | Lost 7 parts (2p4u1w) 40921 | -3/Quarantine | Destroyed by L-61 Swordsman with Power Sword Last Messages --------------- 40906_ Penetrated by EMDS Slug. 40909_ Asb. Focal Cannon integration complete. 40909_ The unstable cave ceiling collapses. 40910_ GOLEM Unit beginning Asb. Nanovents integration. 40910_ Penetrated by Slug. 40910_ Asb. Flux Generator destroyed. 40911_ Asb. Nanovents integration complete. 40912_ GOLEM Unit beginning Asb. Flux Generator integration. 40912_ Penetrated by Slug. 40914_ Penetrated by EMDS Slug. 40914_ Centrium Medium Armor Plating destroyed. 40916_ Penetrated by Slug. 40917_ The unstable cave ceiling collapses. 40917_ Weapon Mount destroyed. 40917_ Imp. Force Field destroyed. 40919_ System corrupted: Imp. Heavy Siege Treads rejected. 40919_ Slug penetrates G-73 Enforcer. 40919_ Slug penetrates Q824-l. 40919_ Asb. Biocell Array destroyed. 40920_ The unstable cave ceiling collapses. Map ----- +----------------------------------------------------+ | | | | | | | | | | | | | | | | | | | | | | | | | | | | | | | | | | | | | ###???### # # # ##??????????????????????? | | # #?##???????????????????? | | ################????????? | | "" # # s % ?????? | | " [ = % ?????? | | hg ?????? | | / # p Qbll ! ??????? | | = h i @%$ ??????? | | %! #### ! m ???????? | | % ## # #### ############ ???????? | | ## # #### ???????????" ?""????? | | # # #???#???????????""???""????? | | # # # ##???????????????""???""????? | | " ##????????????????""???""????? | | "%" # ##?????????????????"""""""????? | | ### " # ######?????????????????????????????? | | ???? #???????????????????????????????????? | | ?????# % ###????????????????????????????????????? | | ?????#! #??????????????????????????????????????? | | ?????# #??????????????????????????????????????? | | ?????# #??????????????????????????????????????? | | ?????# #??????????????????????????????????????? | | ?????# #??????????????????????????????????????? | | ?????# #??????????????????????????????????????? | | ?????# #??????????????????????????????????????? | | ?????# #??????????????????????????????????????? | | ?????# #??????????????????????????????????????? | | ?????# #??????????????????????????????????????? | | ?????# #??????????????????????????????????????? | | ?????# #??????????????????????????????????????? | | ?????# #??????????????????????????????????????? | | ###### #??????????????????????????????????????? | +----------------------------------------------------+ Best States ------------- Heat Dissipation 88 Energy Generation 95 Energy Capacity 2600 Matter Stores 300 Matter Capacity 300 Sight Range 16 Robot Scan Range 20 Terrain Scan Density 10 Jamming Range 16 Additional Mass Support 20 Corruption Containment 8 Armor Coverage 1250 Resistance: KI 15 Resistance: TH 50 Resistance: EX 15 Resistance: EM 15 Resistance: I 15 Resistance: S 15 Resistance: P 15 Utility Shielding 66 Weapon Shielding 100 Phase Shifting 20 Evasion (%) 60 Targeting Accuracy 28 Core Analysis 8 Recoil Reduction 4 Energy Filtering 30 Particle Charging 25 Offensive Hacking 24 Defensive Hacking 28 Authchip Count 6 Item Schematics ----------------- Huge Storage Unit | -10/Materials | Hacked Trap Extractor | -8/Materials | Hacked Powered Armor | -7/Factory | Hacked Exp. Sensor Array | -6/Factory | Scanalyzed Ion Engine | -6/Factory | Hacked Weapon Mount | -6/Factory | Hacked Combat Drone Bay | -6/Data Miner | Free Lgt. Regenerative Plating | -6/Data Miner | Free Cld. Nuclear Pulse Thruster | -6/Data Miner | Free Prc. Energy Filter | -6/Data Miner | Free Imp. KE Penetrator | -6/Data Miner | Free Imp. Heavy Treads | -6/Data Miner | Free Quantum Capacitor | -6/Data Miner | Free Hardcell Cannon | -6/Data Miner | Free Arm. Medium Treads | -6/Data Miner | Free Imp. Phase Shifter | -6/Data Miner | Free Hyb. Antimatter Reactor | -4/Extension | Hacked Adv. System Restoration Module | -3/Research | Scanalyzed Imp. Utility Shielding | -3/Research | Scanalyzed Enh. Coil Gun | -3/Quarantine | Archive Imp. Lightning Gun | -3/Quarantine | Archive Com. Tesla Bomb Launcher | -3/Quarantine | Archive Centrium Heavy Treads | -3/Quarantine | Archive Exp. Signal Interpreter | -3/Quarantine | Archive Tactical Quantum Warhead | -3/Quarantine | Archive Exp. Thermal Defense Suite | -3/Quarantine | Archive Coolant Network | -3/Quarantine | Archive Adv. Myomer Leg | -3/Quarantine | Archive Cld. Plasma Rifle | -3/Quarantine | Archive Kinetic Spear | -3/Quarantine | Archive Exp. Thermal Shield | -3/Quarantine | Archive Ionic Axe | -3/Quarantine | Archive Cld. Gravmag System | -3/Quarantine | Archive Adv. Energy Well | -3/Quarantine | Archive Robot Schematics ------------------ S-27 Virus | -6/Data Miner | Free A-15 Conveyor | -6/Data Miner | Free G-50 Soldier | -6/Data Miner | Free H-66 Slayer | -6/Data Miner | Free L-61 Swordsman | -6/Data Miner | Free W-44 Eye | -6/Data Miner | Free B-60 Warrior | -6/Data Miner | Free A-27 Freighter | -3/Quarantine | Archive T-07 Excavator | -3/Quarantine | Archive B-74 Champion | -3/Quarantine | Archive A-02 Transporter | -3/Quarantine | Archive R-10 Processor | -3/Quarantine | Archive Fabricated ------------ Adv. System Shield | x1 | -7/Factory | Preloaded Powered Armor | x2 | -7/Factory | Authchip Powered Armor | x2 | -6/Factory | Authchip Exp. Sensor Array | x1 | -6/Factory | Authchip Weapon Mount | x2 | -5/Factory | Authchip Powered Armor | x2 | -5/Factory | Authchip Powered Armor | x2 | -4/Factory | Authchip Quantum Reactor | x2 | -3/Research | Preloaded Alien Tech Used ----------------- Dimensional Node Initializer Phase Armor Phase Redirector Core Cannon Achievements -------------- None Challenges ------------ None Game ------ Seed SalvageHeatTerrabomb Manual? 0 Play Time 08:15:00 Cumulative 327.2 hours Start 2024.05.19 @ 19:59:27 End 2024.05.20 @ 22:37:40 Sessions 9 Manual Loads 0 Difficulty Rogue Special Mode None Game No. 196 Rogue 52 Adventurer 144 Explorer 0 Win Type - Total 4 Types 2/0/1/1/0/0/0/0/0 Lore% 66 Gallery% 78 Achievement% 64 Wizard Run 0 Options --------- Layout 0 ASCII 0 Keyboard 0 Movement Mouse Keybinds 0 Fullscreen 2 Font 20/SmallcapsGlow Map View 66x50 Zoom Use 0% Tactical HUD 1 Map Filters NONE Filters NONE Steam X RUN: 0a56778f-7dd2-4198-b91a-ae8cfad83cee